fUST/lending_fUST_20240818
["ID","MTS","AMOUNT","RATE_DAILY","PERIOD"]
[335217533,1723987848480,-500.0,0.00016712,2]
[335217534,1723987848490,-514.05718141,0.00016712,2]
[335217535,1723987848500,-469.50897845,0.00016712,2]
[335217536,1723987848510,-500.0,0.00016712,2]
[335217537,1723987848519,-500.0,0.00016712,2]
[335217538,1723987848529,-500.0,0.00016712,2]
[335217539,1723987848539,-500.0,0.00016712,2]
[335217540,1723987848548,-500.0,0.00016712,2]
[335217541,1723987848559,-500.0,0.00016712,2]
[335217542,1723987848568,-506.76095318,0.00016712,2]
[335217543,1723987848580,-500.0,0.00016712,2]
[335217544,1723987848590,-500.0,0.00016712,2]
[335217545,1723987848600,-500.0,0.00016712,2]
[335217546,1723987848610,-500.0,0.00016712,2]
[335217547,1723987848622,-515.67634002,0.00016712,2]
[335217548,1723987848633,-200.0,0.00016712,2]
[335217549,1723987848642,-507.97641047,0.00016712,2]
[335217550,1723987848652,-500.0,0.00016712,2]
[335217551,1723987848661,-500.0,0.00016712,2]
[335217552,1723987848671,-671.04,0.00016712,2]
[335217553,1723987848681,-500.0,0.00016712,2]
[335217554,1723987848691,-500.0,0.00016712,2]
[335217555,1723987848701,-500.0,0.00016712,2]
[335217556,1723987848713,-500.0,0.00016712,2]
[335217557,1723987848722,-500.0,0.00016712,2]
[335217558,1723987848731,-65.75006312,0.00016712,2]
[335217559,1723987849051,-500.0,0.00016438,2]
[335217560,1723987849062,-434.24993688,0.00016712,2]
[335217561,1723987849071,-500.0,0.00016712,2]
[335217562,1723987849082,-500.0,0.00016712,2]
[335217563,1723987849092,-500.0,0.00016712,2]
[335217564,1723987849102,-414.96297049,0.00016712,2]
[335217565,1723987849111,-500.0,0.00016712,2]
[335217566,1723987849122,-500.0,0.00016712,2]
[335217567,1723987849132,-500.0,0.00016712,2]
[335217568,1723987849142,-500.0,0.00016712,2]
[335217569,1723987849152,-500.0,0.00016712,2]
[335217570,1723987849162,-500.0,0.00016712,2]
[335217571,1723987849171,-500.0,0.00016712,2]
[335217572,1723987849181,-500.0,0.00016712,2]
[335217573,1723987849192,-517.7936347,0.00016712,2]
[335217574,1723987849202,-505.6636181,0.00016712,2]
[335217575,1723987849212,-500.0,0.00016712,2]
[335217576,1723987849221,-500.0,0.00016712,2]
[335217577,1723987849230,-500.0,0.00016712,2]
[335217578,1723987849239,-503.5090464,0.00016712,2]
[335217579,1723987849250,-500.0,0.00016712,2]
[335217580,1723987849261,-620.86,0.00016712,2]
[335217581,1723987849270,-500.8022216,0.00016712,2]
[335217582,1723987849280,-522.86101654,0.00016712,2]
[335217583,1723987849290,-651.35,0.00016712,2]
[335217584,1723987849302,-579.51,0.00016712,2]
[335217585,1723987849315,-502.20372437,0.00016712,2]
[335217586,1723987849325,-500.0,0.00016712,2]
[335217587,1723987849337,-500.0,0.00016712,2]
[335217588,1723987849349,-500.0,0.00016712,2]
[335217589,1723987849360,-515.55398603,0.00016712,2]
[335217590,1723987849372,-500.0,0.00016712,2]
[335217591,1723987849383,-500.0,0.00016712,2]
[335217592,1723987849395,-834.08,0.00016712,2]
[335217593,1723987849406,-500.0,0.00016712,2]
[335217594,1723987849415,-500.0,0.00016712,2]
[335217595,1723987849427,-287.4643648,0.00016712,2]
[335217596,1723987849437,-500.0,0.00016712,2]
[335217597,1723987849447,-314.10509722,0.00016712,2]
[335217598,1723987849458,-500.0,0.00016712,2]
[335217599,1723987849468,-500.0,0.00016712,2]
[335217600,1723987849478,-521.18586828,0.00016712,2]
[335217601,1723987849488,-500.0,0.00016712,2]
[335217602,1723987849497,-635.5952939,0.00016712,2]
[335217603,1723987849507,-500.0,0.00016712,2]
[335217604,1723987849517,-500.0,0.00016712,2]
[335217605,1723987849526,-176.54166982,0.00016712,2]
[335217606,1723987849535,-500.0,0.00016712,2]
[335217607,1723987849545,-500.0,0.00016712,2]
[335217608,1723987849555,-500.0,0.00016712,2]
[335217609,1723987849566,-500.0,0.00016712,2]
[335217610,1723987849576,-500.0,0.00016712,2]
[335217611,1723987849587,-500.0,0.00016712,2]
[335217612,1723987849597,-500.0,0.00016712,2]
[335217613,1723987849607,-598.23,0.00016712,2]
[335217614,1723987849616,-500.0,0.00016712,2]
[335217615,1723987849626,-500.0,0.00016712,2]
[335217616,1723987849637,-500.0,0.00016712,2]
[335217617,1723987849647,-500.0,0.00016712,2]
[335217618,1723987849657,-512.04081404,0.00016712,2]
[335217619,1723987849668,-500.0,0.00016712,2]
[335217620,1723987849678,-694.6,0.00016712,2]
[335217621,1723987849688,-500.0,0.00016712,2]
[335217622,1723987849699,-500.0,0.00016712,2]
[335217623,1723987849709,-500.0,0.00016712,2]
[335217624,1723987849720,-571.47,0.00016712,2]
[335217625,1723987849732,-500.0,0.00016712,2]
[335217626,1723987849742,-500.0,0.00016712,2]
[335217627,1723987849751,-1035.93,0.00016712,2]
[335217628,1723987849761,-500.0,0.00016712,2]
[335217629,1723987849772,-500.0,0.00016712,2]
[335217630,1723987849782,-500.0,0.00016712,2]
[335217631,1723987849793,-725.25,0.00016712,2]
[335217632,1723987849804,-500.0,0.00016712,2]
[335217633,1723987849814,-508.31419883,0.00016712,2]
[335217634,1723987849823,-500.0,0.00016712,2]
[335217635,1723987849833,-500.0,0.00016712,2]
[335217636,1723987849844,-500.0,0.00016712,2]
[335217637,1723987849855,-500.0,0.00016712,2]
[335217638,1723987849867,-1065.61,0.00016712,2]
[335217639,1723987849878,-500.0,0.00016712,2]
[335217640,1723987849888,-500.0,0.00016712,2]
[335217641,1723987849899,-500.0,0.00016712,2]
[335217642,1723987849908,-500.0,0.00016712,2]
[335217643,1723987849918,-500.0,0.00016712,2]
[335217644,1723987849929,-688.4,0.00016712,2]
[335217645,1723987849939,-500.0,0.00016712,2]
[335217646,1723987849950,-686.8,0.00016712,2]
[335217647,1723987849961,-500.0,0.00016712,2]
[335217648,1723987849973,-500.0,0.00016712,2]
[335217649,1723987849984,-500.0,0.00016712,2]
[335217650,1723987849995,-500.0,0.00016712,2]
[335217651,1723987850006,-500.0,0.00016712,2]
[335217652,1723987850015,-500.0,0.00016712,2]
[335217653,1723987850025,-500.0,0.00016712,2]
[335217654,1723987850034,-500.0,0.00016712,2]
[335217655,1723987850045,-500.0,0.00016712,2]
[335217656,1723987850059,-390.758708,0.00016712,2]
[335217657,1723987850068,-500.0,0.00016712,2]
[335217658,1723987850078,-645.38,0.00016712,2]
[335217659,1723987850088,-500.0,0.00016712,2]
[335217660,1723987850098,-500.0,0.00016712,2]
[335217661,1723987850107,-725.37,0.00016712,2]
[335217662,1723987850119,-500.0,0.00016712,2]
[335217663,1723987850128,-474.86221474,0.00016712,2]
[335217664,1723987850139,-502.34132061,0.00016712,2]
[335217665,1723987850149,-500.0,0.00016712,2]
[335217666,1723987850160,-500.0,0.00016712,2]
[335217667,1723987850171,-500.0,0.00016712,2]
[335217668,1723987850183,-448.51956165,0.00016712,2]
[335217669,1723987850194,-500.0,0.00016712,2]
[335217670,1723987850206,-869.12,0.00016712,2]
[335217671,1723987850216,-500.0,0.00016712,2]
[335217672,1723987850226,-509.09326815,0.00016712,2]
[335217673,1723987850236,-500.0,0.00016712,2]
[335217674,1723987850248,-500.0,0.00016712,2]
[335217675,1723987850260,-500.0,0.00016712,2]
[335217676,1723987850270,-500.0,0.00016712,2]
[335217677,1723987850280,-500.0,0.00016712,2]
[335217678,1723987850290,-500.0,0.00016712,2]
[335217679,1723987850302,-505.61470572,0.00016712,2]
[335217680,1723987850315,-500.0,0.00016712,2]
[335217681,1723987850323,-500.0,0.00016712,2]
[335217682,1723987850332,-1392.6,0.00016712,2]
[335217683,1723987850345,-549.8,0.00016712,2]
[335217684,1723987850357,-539.21423371,0.00016712,2]
[335217685,1723987850367,-500.0,0.00016712,2]
[335217686,1723987850377,-500.0,0.00016712,2]
[335217687,1723987850390,-500.0,0.00016712,2]
[335217688,1723987850400,-500.0,0.00016712,2]
[335217689,1723987850410,-568.6745778,0.00016712,2]
[335217690,1723987850421,-500.0,0.00016712,2]
[335217691,1723987850432,-500.0,0.00016712,2]
[335217692,1723987850443,-500.0,0.00016712,2]
[335217693,1723987850454,-500.0,0.00016712,2]
[335217694,1723987850465,-500.0,0.00016712,2]
[335217695,1723987850475,-510.80240199,0.00016712,2]
[335217696,1723987850485,-623.23,0.00016712,2]
[335217697,1723987850495,-500.0,0.00016712,2]
[335217698,1723987850505,-500.0,0.00016712,2]
[335217699,1723987850516,-500.0,0.00016712,2]
[335217700,1723987850526,-500.0,0.00016712,2]
[335217701,1723987850535,-500.0,0.00016712,2]
[335217702,1723987850545,-500.0,0.00016712,2]
[335217703,1723987850555,-552.58696288,0.00016712,2]
[335217704,1723987850567,-608.45,0.00016712,2]
[335217705,1723987850578,-500.0,0.00016712,2]
[335217706,1723987850590,-708.08,0.00016712,2]
[335217707,1723987850599,-500.0,0.00016712,2]
[335217708,1723987850703,-593.36,0.00016712,2]
[335217709,1723987850712,-500.0,0.00016712,2]
[335217710,1723987850722,-543.71684572,0.00016712,2]
[335217711,1723987850732,-690.29,0.00016712,2]
[335217712,1723987850742,-500.0,0.00016712,2]
[335217713,1723987850753,-1034.16,0.00016712,2]
[335217714,1723987850763,-500.0,0.00016712,2]
[335217715,1723987850774,-500.0,0.00016712,2]
[335217716,1723987850785,-500.0,0.00016712,2]
[335217717,1723987850794,-500.0,0.00016712,2]
[335217718,1723987850804,-500.0,0.00016712,2]
[335217719,1723987850815,-500.0,0.00016712,2]
[335217720,1723987850826,-500.0,0.00016712,2]
[335217721,1723987850836,-500.0,0.00016712,2]
[335217722,1723987850846,-500.0,0.00016712,2]
[335217723,1723987850855,-526.92,0.00016712,2]
[335217724,1723987850865,-655.73,0.00016712,2]
[335217725,1723987850876,-500.0,0.00016712,2]
[335217726,1723987850886,-500.0,0.00016712,2]
[335217727,1723987850897,-500.0,0.00016712,2]
[335217728,1723987850908,-500.0,0.00016712,2]
[335217729,1723987850920,-500.0,0.00016712,2]
[335217730,1723987850929,-743.79,0.00016712,2]
[335217731,1723987850941,-500.0,0.00016712,2]
[335217732,1723987850951,-500.0,0.00016712,2]
[335217733,1723987850961,-500.0,0.00016712,2]
[335217734,1723987850970,-500.0,0.00016712,2]
[335217735,1723987850979,-500.0,0.00016712,2]
[335217736,1723987850988,-500.0,0.00016712,2]
[335217737,1723987850997,-752.56,0.00016712,2]
[335217738,1723987851006,-500.0,0.00016712,2]
[335217739,1723987851016,-500.0,0.00016712,2]
[335217740,1723987851025,-732.89,0.00016712,2]
[335217741,1723987851034,-151.0,0.00016712,2]
[335217742,1723987851043,-500.0,0.00016712,2]
[335217743,1723987851053,-151.0,0.00016712,2]
[335217744,1723987851062,-597.15331556,0.00016712,2]
[335217745,1723987851072,-644.57777291,0.00016712,2]
[335217746,1723987851081,-500.0,0.00016712,2]
[335217747,1723987851090,-500.0,0.00016712,2]
[335217748,1723987851099,-151.0,0.00016712,2]
[335217749,1723987851109,-151.0,0.00016712,2]
[335217750,1723987851118,-500.0,0.00016712,2]
[335217751,1723987851131,-500.0,0.00016712,2]
[335217752,1723987851142,-500.0,0.00016712,2]
[335217753,1723987851152,-500.0,0.00016712,2]
[335217754,1723987851163,-501.88739602,0.00016712,2]
[335217755,1723987851173,-500.0,0.00016712,2]
[335217756,1723987851183,-500.0,0.00016712,2]
[335217757,1723987851193,-500.0,0.00016712,2]
[335217758,1723987851204,-500.0,0.00016712,2]
[335217759,1723987851214,-504.26190343,0.00016712,2]
[335217760,1723987851224,-500.0,0.00016712,2]
[335217761,1723987851234,-500.0,0.00016712,2]
[335217762,1723987851243,-608.88,0.00016712,2]
[335217763,1723987851254,-529.96242186,0.00016712,2]
[335217764,1723987851266,-500.0,0.00016712,2]
[335217765,1723987851277,-500.0,0.00016712,2]
[335217766,1723987851287,-500.0,0.00016712,2]
[335217767,1723987851298,-500.0,0.00016712,2]
[335217768,1723987851315,-500.0,0.00016712,2]
[335217769,1723987851329,-500.0,0.00016712,2]
[335217770,1723987851339,-500.0,0.00016712,2]
[335217771,1723987851349,-500.0,0.00016712,2]
[335217772,1723987851360,-500.0,0.00016712,2]
[335217773,1723987851370,-210.85225262,0.00016712,2]
[335217774,1723987851381,-500.0,0.00016712,2]
[335217775,1723987851390,-632.45161308,0.00016712,2]
[335217776,1723987851400,-500.0,0.00016712,2]
[335217777,1723987851411,-500.0,0.00016712,2]
[335217778,1723987851421,-500.0,0.00016712,2]
[335217779,1723987851432,-203.93556017,0.00016712,2]
[335217780,1723987851443,-500.0,0.00016712,2]
[335217781,1723987851452,-500.0,0.00016712,2]
[335217782,1723987851462,-500.0,0.00016712,2]
[335217783,1723987851473,-500.0,0.00016712,2]
[335217784,1723987851484,-500.0,0.00016712,2]
[335217785,1723987851495,-500.0,0.00016712,2]
[335217786,1723987851506,-505.06143816,0.00016712,2]
[335217787,1723987851517,-500.0,0.00016712,2]
[335217788,1723987851528,-571.99,0.00016712,2]
[335217789,1723987851537,-500.0,0.00016712,2]
[335217790,1723987851549,-7337.88,0.00016712,2]
[335217791,1723987851560,-520.26,0.00016712,2]
[335217792,1723987851570,-500.0,0.00016712,2]
[335217793,1723987851580,-500.0,0.00016712,2]
[335217794,1723987851589,-500.0,0.00016712,2]
[335217795,1723987851600,-500.0,0.00016712,2]
[335217796,1723987851611,-500.0,0.00016712,2]
[335217797,1723987851623,-500.0,0.00016712,2]
[335217798,1723987851632,-500.0,0.00016712,2]
[335217799,1723987851644,-500.0,0.00016712,2]
[335217800,1723987851653,-500.0,0.00016712,2]
[335217801,1723987851663,-500.0,0.00016712,2]
[335217802,1723987851673,-624.47919493,0.00016712,2]
[335217803,1723987851684,-607.95,0.00016712,2]
[335217804,1723987851695,-840.77,0.00016712,2]
[335217805,1723987851705,-500.0,0.00016712,2]
[335217806,1723987851715,-1000.0,0.00016712,2]
[335217807,1723987851725,-500.0,0.00016712,2]
[335217808,1723987851735,-500.0,0.00016712,2]
[335217809,1723987851744,-500.0,0.00016712,2]
[335217810,1723987851754,-508.53760235,0.00016712,2]
[335217811,1723987851764,-500.0,0.00016712,2]
[335217812,1723987851774,-500.0,0.00016712,2]
[335217813,1723987851784,-500.0,0.00016712,2]
[335217814,1723987851794,-943.8,0.00016712,2]
[335217815,1723987851804,-500.0,0.00016712,2]
[335217816,1723987851815,-500.0,0.00016712,2]
[335217817,1723987851825,-500.0,0.00016712,2]
[335217818,1723987851836,-500.0,0.00016712,2]
[335217819,1723987851848,-500.0,0.00016712,2]
[335217820,1723987851860,-500.0,0.00016712,2]
[335217821,1723987851871,-890.54,0.00016712,2]
[335217822,1723987851881,-500.0,0.00016712,2]
[335217823,1723987851892,-500.0,0.00016712,2]
[335217824,1723987851903,-500.0,0.00016712,2]
[335217825,1723987851914,-500.0,0.00016712,2]
[335217826,1723987851924,-500.0,0.00016712,2]
[335217827,1723987851935,-500.0,0.00016712,2]
[335217828,1723987851947,-500.0,0.00016712,2]
[335217829,1723987851958,-500.0,0.00016712,2]
[335217830,1723987851970,-500.0,0.00016712,2]
[335217831,1723987851982,-500.0,0.00016712,2]
[335217832,1723987851992,-500.0,0.00016712,2]
[335217833,1723987852004,-500.0,0.00016712,2]
[335217834,1723987852013,-829.06,0.00016712,2]
[335217835,1723987852023,-500.0,0.00016712,2]
[335217836,1723987852032,-500.0,0.00016712,2]
[335217837,1723987852043,-500.0,0.00016712,2]
[335217838,1723987852054,-513.76259266,0.00016712,2]
[335217839,1723987852064,-500.0,0.00016712,2]
[335217840,1723987852074,-500.0,0.00016712,2]
[335217841,1723987852084,-500.0,0.00016712,2]
[335217842,1723987852096,-513.94036456,0.00016712,2]
[335217843,1723987852106,-500.0,0.00016712,2]
[335217844,1723987852116,-509.54630625,0.00016712,2]
[335217845,1723987852126,-500.0,0.00016712,2]
[335217846,1723987852135,-500.0,0.00016712,2]
[335217847,1723987852146,-508.5380433,0.00016712,2]
[335217848,1723987852157,-1397.78,0.00016712,2]
[335217849,1723987852168,-500.0,0.00016712,2]
[335217850,1723987852180,-511.3471811,0.00016712,2]
[335217851,1723987852191,-500.0,0.00016712,2]
[335217852,1723987852201,-500.0,0.00016712,2]
[335217853,1723987852212,-509.86420055,0.00016712,2]
[335217854,1723987852308,-501.15990719,0.00016712,2]
[335217855,1723987852326,-674.09,0.00016712,2]
[335217856,1723987852336,-500.0,0.00016712,2]
[335217857,1723987852347,-500.0,0.00016712,2]
[335217858,1723987852357,-500.0,0.00016712,2]
[335217859,1723987852366,-500.0,0.00016712,2]
[335217860,1723987852376,-500.0,0.00016712,2]
[335217861,1723987852388,-210.28986932,0.00016712,2]
[335217862,1723987852398,-500.0,0.00016712,2]
[335217863,1723987852409,-500.0,0.00016712,2]
[335217864,1723987852419,-1315.67,0.00016712,2]
[335217865,1723987852428,-513.1321398,0.00016712,2]
[335217866,1723987852438,-500.0,0.00016712,2]
[335217867,1723987852449,-504.28874436,0.00016712,2]
[335217868,1723987852460,-510.71326632,0.00016712,2]
[335217869,1723987852471,-500.0,0.00016712,2]
[335217870,1723987852481,-500.0,0.00016712,2]
[335217871,1723987852491,-500.0,0.00016712,2]
[335217872,1723987852500,-500.0,0.00016712,2]
[335217873,1723987852511,-1132.64,0.00016712,2]
[335217874,1723987852521,-831.79,0.00016712,2]
[335217875,1723987852532,-500.0,0.00016712,2]
[335217876,1723987852542,-469.84670545,0.00016712,2]
[335217877,1723987852551,-511.01685736,0.00016712,2]
[335217878,1723987852562,-500.0,0.00016712,2]
[335217879,1723987852570,-500.0,0.00016712,2]
[335217880,1723987852580,-515.17274686,0.00016712,2]
[335217881,1723987852591,-500.0,0.00016712,2]
[335217882,1723987852601,-500.0,0.00016712,2]
[335217883,1723987852611,-500.0,0.00016712,2]
[335217884,1723987852621,-500.0,0.00016712,2]
[335217885,1723987852632,-500.0,0.00016712,2]
[335217886,1723987852641,-500.0,0.00016712,2]
[335217887,1723987852650,-261.95080758,0.00016712,2]
[335217888,1723987852660,-618.92,0.00016712,2]
[335217889,1723987852669,-530.88077677,0.00016712,2]
[335217890,1723987852678,-500.0,0.00016712,2]
[335217891,1723987852688,-500.0,0.00016712,2]
[335217892,1723987852697,-2708.0,0.00016712,2]
[335217893,1723987852706,-1058.75,0.00016712,2]
[335217894,1723987852716,-500.0,0.00016712,2]
[335217895,1723987852726,-504.84887392,0.00016712,2]
[335217896,1723987852736,-500.0,0.00016712,2]
[335217897,1723987852748,-500.0,0.00016712,2]
[335217898,1723987852758,-500.0,0.00016712,2]
[335217899,1723987852770,-503.5388865,0.00016712,2]
[335217900,1723987852781,-727.38,0.00016712,2]
[335217901,1723987852791,-1207.97,0.00016712,2]
[335217902,1723987852803,-1226.39,0.00016712,2]
[335217903,1723987852815,-500.0,0.00016712,2]
[335217904,1723987852826,-503.1800564,0.00016712,2]
[335217905,1723987852837,-500.0,0.00016712,2]
[335217906,1723987852847,-1045.59,0.00016712,2]
[335217907,1723987852858,-500.0,0.00016712,2]
[335217908,1723987852868,-500.0,0.00016712,2]
[335217909,1723987852879,-500.0,0.00016712,2]
[335217910,1723987852890,-549.38946756,0.00016712,2]
[335217911,1723987852900,-534.19,0.00016712,2]
[335217912,1723987852912,-500.0,0.00016712,2]
[335217913,1723987852922,-500.0,0.00016712,2]
[335217914,1723987852931,-509.8537679,0.00016712,2]
[335217915,1723987852941,-388.24660019,0.00016712,2]
[335217916,1723987852951,-500.0,0.00016712,2]
[335217917,1723987852963,-500.0,0.00016712,2]
[335217918,1723987852973,-685.54,0.00016712,2]
[335217919,1723987852983,-500.0,0.00016712,2]
[335217920,1723987852993,-500.0,0.00016712,2]
[335217921,1723987853004,-500.0,0.00016712,2]
[335217922,1723987853014,-607.45,0.00016712,2]
[335217923,1723987853024,-500.0,0.00016712,2]
[335217924,1723987853034,-500.0,0.00016712,2]
[335217925,1723987853046,-500.0,0.00016712,2]
[335217926,1723987853056,-500.0,0.00016712,2]
[335217927,1723987853066,-1065.72,0.00016712,2]
[335217928,1723987853075,-592.28,0.00016712,2]
[335217929,1723987853085,-500.0,0.00016712,2]
[335217930,1723987853095,-525.36014816,0.00016712,2]
[335217931,1723987853105,-1932.23,0.00016712,2]
[335217932,1723987853115,-500.0,0.00016712,2]
[335217933,1723987853124,-636.84387548,0.00016712,2]
[335217934,1723987853135,-500.0,0.00016712,2]
[335217935,1723987853144,-1316.23,0.00016712,2]
[335217936,1723987853153,-500.0,0.00016712,2]
[335217937,1723987853163,-476.9657291,0.00016712,2]
[335217938,1723987853173,-825.7,0.00016712,2]
[335217939,1723987853183,-824.8,0.00016712,2]
[335217940,1723987853193,-1768.11,0.00016712,2]
[335217941,1723987853202,-543.53104022,0.00016712,2]
[335217942,1723987853211,-500.0,0.00016712,2]
[335217943,1723987853221,-500.0,0.00016712,2]
[335217944,1723987853229,-500.0,0.00016712,2]
[335217945,1723987853239,-500.0,0.00016712,2]
[335217946,1723987853248,-1144.56,0.00016712,2]
[335217947,1723987853259,-500.0,0.00016712,2]
[335217948,1723987853271,-500.0,0.00016712,2]
[335217949,1723987853282,-500.0,0.00016712,2]
[335217950,1723987853292,-500.0,0.00016712,2]
[335217951,1723987853306,-500.0,0.00016712,2]
[335217952,1723987853319,-500.0,0.00016712,2]
[335217953,1723987853330,-500.0,0.00016712,2]
[335217954,1723987853341,-321.84816398,0.00016712,2]
[335217955,1723987853354,-502.12097442,0.00016712,2]
[335217956,1723987853364,-604.44,0.00016712,2]
[335217957,1723987853375,-500.0,0.00016712,2]
[335217958,1723987853389,-500.0,0.00016712,2]
[335217959,1723987853400,-843.92,0.00016712,2]
[335217960,1723987853411,-500.0,0.00016712,2]
[335217961,1723987853423,-500.0,0.00016712,2]
[335217962,1723987853434,-1121.11,0.00016712,2]
[335217963,1723987853444,-500.0,0.00016712,2]
[335217964,1723987853456,-500.0,0.00016712,2]
[335217965,1723987853467,-592.23,0.00016712,2]
[335217966,1723987853478,-500.0,0.00016712,2]
[335217967,1723987853487,-500.0,0.00016712,2]
[335217968,1723987853497,-500.0,0.00016712,2]
[335217969,1723987853508,-500.0,0.00016712,2]
[335217970,1723987853518,-500.0,0.00016712,2]
[335217971,1723987853530,-500.0,0.00016712,2]
[335217972,1723987853540,-500.0,0.00016712,2]
[335217973,1723987853550,-768.86,0.00016712,2]
[335217974,1723987853561,-500.0,0.00016712,2]
[335217975,1723987853573,-896.83,0.00016712,2]
[335217976,1723987853583,-304.73344824,0.00016712,2]
[335217977,1723987853594,-987.41,0.00016712,2]
[335217978,1723987853605,-500.0,0.00016712,2]
[335217979,1723987853616,-500.0,0.00016712,2]
[335217980,1723987853628,-500.0,0.00016712,2]
[335217981,1723987853638,-668.29,0.00016712,2]
[335217982,1723987853648,-500.0,0.00016712,2]
[335217983,1723987853659,-1019.02,0.00016712,2]
[335217984,1723987853669,-500.0,0.00016712,2]
[335217985,1723987853679,-500.0,0.00016712,2]
[335217986,1723987853688,-500.0,0.00016712,2]
[335217987,1723987853698,-2221.95,0.00016712,2]
[335217988,1723987853708,-919.11,0.00016712,2]
[335217989,1723987853799,-500.0,0.00016712,2]
[335217990,1723987853808,-500.0,0.00016712,2]
[335217991,1723987853817,-579.89,0.00016712,2]
[335217992,1723987853826,-798.58,0.00016712,2]
[335217993,1723987853836,-888.46,0.00016712,2]
[335217994,1723987853846,-151.0,0.00016712,2]
[335217995,1723987853855,-151.0,0.00016712,2]
[335217996,1723987853866,-500.0,0.00016712,2]
[335217997,1723987853877,-677.44,0.00016712,2]
[335217998,1723987853887,-287.390957,0.00016712,2]
[335217999,1723987853898,-500.0,0.00016712,2]
[335218000,1723987853910,-500.0,0.00016712,2]
[335218001,1723987853920,-500.0,0.00016712,2]
[335218002,1723987853930,-500.0,0.00016712,2]
[335218003,1723987853940,-2766.47,0.00016712,2]
[335218004,1723987853952,-500.0,0.00016712,2]
[335218005,1723987853964,-794.6,0.00016712,2]
[335218006,1723987853975,-699.53,0.00016712,2]
[335218007,1723987853986,-500.0,0.00016712,2]
[335218008,1723987853996,-500.0,0.00016712,2]
[335218009,1723987854007,-500.0,0.00016712,2]
[335218010,1723987854018,-837.87,0.00016712,2]
[335218011,1723987854029,-500.0,0.00016712,2]
[335218012,1723987854039,-500.0,0.00016712,2]
[335218013,1723987854051,-524.49331253,0.00016712,2]
[335218014,1723987854063,-954.92,0.00016712,2]
[335218015,1723987854074,-759.09,0.00016712,2]
[335218016,1723987854084,-1990.91,0.00016712,2]
[335218017,1723987854095,-500.0,0.00016712,2]
[335218018,1723987854106,-500.0,0.00016712,2]
[335218019,1723987854119,-699.72,0.00016712,2]
[335218020,1723987854129,-1068.78,0.00016712,2]
[335218021,1723987854141,-750.43,0.00016712,2]
[335218022,1723987854153,-500.0,0.00016712,2]
[335218023,1723987854163,-500.0,0.00016712,2]
[335218024,1723987854173,-500.0,0.00016712,2]
[335218025,1723987854184,-500.0,0.00016712,2]
[335218026,1723987854194,-854.51,0.00016712,2]
[335218027,1723987854206,-500.0,0.00016712,2]
[335218028,1723987854216,-358.63815817,0.00016712,2]
[335218029,1723987854225,-500.0,0.00016712,2]
[335218030,1723987854235,-500.0,0.00016712,2]
[335218031,1723987854244,-500.0,0.00016712,2]
[335218032,1723987854254,-501.93888408,0.00016712,2]